bitfinex-derivatives/quotes_ETHF0:USTF0_20240907
["timestamp","ask_amount","ask_price","bid_price","bid_amount"]
[1725720921122,0.3827,2294.1,2293.9,3.01]
[1725720921321,0.3827,2294.1,2293.9,3.44595]
[1725720922425,0.3827,2294.1,2294.0,0.43594]
[1725720922728,0.3827,2294.1,2293.9,3.44595]
[1725720924024,0.3827,2294.1,2294.0,0.43594]
[1725720924328,0.3827,2294.1,2293.9,3.44595]
[1725720926519,0.3827,2294.1,2294.0,0.43594]
[1725720926726,0.3731,2294.3,2294.0,0.7826]
[1725720926918,3.583,2294.5,2294.2,3.01]
[1725720927224,4.01885,2294.5,2294.2,3.01]
[1725720928215,0.43586,2294.4,2294.1,0.43592]
[1725720928420,5.29402831,2294.5,2294.1,0.43592]
[1725720928421,5.72987831,2294.5,2294.1,0.43592]
[1725720929520,0.43586,2294.4,2294.1,0.43592]
[1725720931337,0.43586,2294.4,2294.2,0.4359]
[1725720931534,5.29402831,2294.5,2294.2,0.4359]
[1725720931535,5.72987831,2294.5,2294.2,0.4359]
[1725720932926,5.72987831,2294.5,2294.3,0.3686]
[1725720933826,5.29402831,2294.5,2294.3,0.80447]
[1725720934032,5.72987831,2294.5,2294.3,0.3686]
[1725720934531,4.01885,2294.5,2294.3,0.3686]
[1725720936731,0.81105,2294.5,2294.3,0.3686]
[1725720936924,4.01885,2294.5,2294.3,0.3686]
[1725720937528,0.81105,2294.5,2294.3,0.3686]
[1725720937723,0.43586,2294.4,2294.3,0.3686]
[1725720937928,1.08971,2294.3,2293.6,4.35132447]
[1725720938135,3.2078,2294.0,2293.6,0.3947]
[1725720938425,0.3881,2293.9,2293.8,0.43597]
[1725720939923,0.3881,2293.9,2293.8,1.69597]
[1725720941135,1.20241,2294.2,2293.8,1.69597]
[1725720941431,0.3779,2294.1,2293.9,0.7601]
[1725720941636,0.3779,2294.1,2294.0,1.26]
[1725720941832,0.3779,2294.1,2294.0,1.6541]
[1725720942429,0.7665,2294.2,2294.1,0.43592]
[1725720942732,0.7665,2294.2,2294.0,2.09002]
[1725720943130,2.52479831,2294.4,2294.0,2.09002]
[1725720943439,3.2078,2294.3,2294.0,2.09002]
[1725720943736,3.64368,2294.3,2294.0,2.09002]
[1725720945639,0.43588,2294.3,2294.0,2.09002]
[1725720946038,3.64368,2294.3,2294.0,2.09002]
[1725720946535,0.4359,2294.2,2294.0,0.3941]
[1725720946726,3.6437,2294.2,2293.9,1.69596]
[1725720946931,0.3743,2294.1,2293.9,1.69596]
[1725720947132,1.21754,2294.0,2293.7,1.17178]
[1725720947333,0.7816,2294.0,2293.8,1.26]
[1725720947740,1.21754,2294.0,2293.8,1.26]
[1725720948846,1.21754,2294.0,2293.8,1.69597]
[1725720949034,1.21754,2294.0,2293.8,1.26]
[1725720949341,0.43596,2293.9,2293.8,1.26]
[1725720949737,3.64376,2293.9,2293.8,1.26]
[1725720950842,3.64376,2293.9,2293.7,0.3773]
[1725720951030,3.64376,2293.9,2293.7,1.6373]
[1725720951835,3.2078,2293.9,2293.7,2.07329]
[1725720952041,3.64377,2293.9,2293.7,1.6373]
[1725720952433,3.2078,2293.9,2293.7,2.07329]
[1725720952632,3.64376,2293.9,2293.7,2.07329]
[1725720954544,3.2078,2293.9,2293.7,2.07329]
[1725720956139,1.21755,2294.0,2293.7,2.07329]
[1725720956140,4.42535,2294.0,2293.7,2.07329]
[1725720956438,6.13637831,2294.0,2293.7,2.07329]
[1725720958337,0.43596,2293.9,2293.7,2.07329]
[1725720960145,3.2078,2294.0,2293.8,0.43596]
[1725720960338,4.91882831,2294.0,2293.8,0.43596]
[1725720960836,5.35476831,2294.0,2293.9,0.3649]
[1725720961033,5.35476831,2294.0,2293.7,2.43818]
[1725720961442,1.71102831,2293.9,2293.8,0.43597]
[1725720961639,5.35476831,2294.0,2293.8,0.43597]
[1725720962045,2.14696831,2294.0,2293.8,0.43597]
[1725720962342,1.71102831,2293.9,2293.8,0.43597]
[1725720962543,1.71102831,2293.9,2293.7,2.0022]
[1725720962544,1.71102831,2293.9,2293.7,2.43818]
[1725720962841,1.71102831,2293.9,2293.8,0.43597]
[1725720963545,1.71102831,2293.9,2293.7,2.43818]
[1725720964539,2.14698831,2293.9,2293.7,2.43818]
[1725720964733,0.3668,2293.8,2293.7,2.43818]
[1725720965142,0.3668,2293.8,2293.7,1.69598]
[1725720965341,0.3668,2293.8,2293.7,2.06118]
[1725720969534,1.71102831,2293.9,2293.8,0.43597]
[1725720970350,1.71102831,2293.9,2293.8,4.79517]
[1725720970536,1.71102831,2294.1,2293.9,0.43596]
[1725720970739,1.71102831,2294.1,2294.0,1.1304]
[1725720970940,2.14692831,2294.2,2294.0,1.1304]
[1725720972250,1.71102831,2294.2,2294.0,1.56633]
[1725720973145,1.71102831,2294.2,2294.1,0.43592]
[1725720977350,3.05140275,2294.4,2294.2,0.4359]
[1725720977547,3.05140275,2294.4,2294.3,0.3914]
[1725720983254,3.9779,2294.4,2294.3,0.3914]
[1725720985053,6.82682748,2294.4,2294.3,0.3914]
[1725720985254,3.61902748,2294.4,2294.3,0.3914]
[1725720985459,6.82682748,2294.4,2294.2,0.4359]
[1725720985661,2.67599421,2294.3,2294.2,0.4359]
[1725720990359,0.3953,2294.3,2294.2,0.4359]
[1725720990869,2.10546053,2294.3,2294.2,0.4359]
[1725720991460,1.71016053,2294.3,2294.2,0.4359]
[1725720991959,1.71016053,2294.3,2294.2,6.0543]
[1725720992160,1.71002172,2294.4,2294.3,0.43588]
[1725720992558,1.71002172,2294.4,2294.3,4.79428]
[1725720993264,2.08432172,2294.5,2294.4,0.43586]
[1725720994063,2.08432172,2294.5,2294.3,0.43587]
[1725720994264,2.08432172,2294.5,2294.4,0.43586]
[1725720996472,2.65499421,2294.5,2294.3,0.43587]
[1725720996766,1.71064084,2294.4,2294.3,0.43587]
[1725720998893,13.32904084,2294.4,2294.0,1.14352447]
[1725720999177,13.32904084,2294.4,2293.4,2.06284]
[1725720999178,0.43597,2293.8,2293.4,2.06284]
[1725720999366,1.70945407,2293.6,2293.4,2.06284]
[1725721001169,3.28755407,2293.7,2293.4,2.06284]
[1725721001573,1.70945407,2293.6,2293.4,2.06284]
[1725721001969,3.28755407,2293.7,2293.4,2.06284]
[1725721002476,3.28755407,2293.7,2293.4,1.6268]
[1725721004370,0.43601,2293.6,2293.4,1.26]
[1725721004571,3.28755407,2293.7,2293.4,1.69605]
[1725721005175,3.28755407,2293.7,2293.4,0.43605]
[1725721005376,0.43601,2293.6,2293.4,0.43605]
[1725721005872,2.85155407,2293.7,2293.4,0.43605]
[1725721005873,3.28756407,2293.7,2293.5,0.43603]
[1725721006181,2.85155407,2293.7,2293.5,0.43603]
[1725721006575,3.28754407,2293.7,2293.5,0.83163]
[1725721007276,2.85155407,2293.7,2293.5,0.83163]
[1725721007481,1.70945407,2293.8,2293.7,0.43599]
[1725721007679,2.14539407,2294.0,2293.7,1.69599]
[1725721007874,2.14539407,2294.0,2293.7,2.06679]
[1725721008476,1.70945407,2294.0,2293.8,0.43597]
[1725721008675,1.70945407,2294.0,2293.9,0.3777]
[1725721009285,6.06505407,2294.1,2293.9,0.81366]
[1725721010681,0.43596,2293.9,2293.6,0.3797]
[1725721010881,0.43596,2293.9,2293.6,0.8157]
[1725721011280,2.14541407,2293.9,2293.6,0.8157]
[1725721013290,0.43596,2293.9,2293.6,0.8157]
[1725721016380,2.14540407,2294.0,2293.7,0.43599]
[1725721016581,0.43596,2293.9,2293.7,0.43599]
[1725721019896,0.3927,2293.8,2293.7,0.43599]
[1725721023292,1.70945407,2294.0,2293.6,1.6397]
[1725721023595,0.3853,2294.1,2294.0,0.43594]
[1725721024097,0.3853,2294.1,2294.0,0.82274]
[1725721024294,1.70945407,2294.3,2294.2,0.4359]
[1725721024594,6.25531407,2294.4,2294.0,0.3868]
[1725721025691,5.81945407,2294.4,2294.2,0.43589]
[1725721025897,1.70945407,2294.4,2294.2,0.43589]
[1725721026086,1.70945407,2294.4,2294.1,1.26]
[1725721026290,1.70945407,2294.4,2294.3,0.43588]
[1725721027099,4.91725407,2294.4,2294.3,0.43588]
[1725721027594,4.91725407,2294.4,2294.2,0.43589]
[1725721028992,4.91725407,2294.4,2294.2,0.4359]
[1725721029199,4.91725407,2294.4,2294.3,0.43588]
[1725721032591,4.91725407,2294.4,2294.2,0.43589]
[1725721032787,4.91725407,2294.4,2293.8,4.5801489]
[1725721032788,4.91725407,2294.4,2293.7,1.14352447]
[1725721032994,3.2078,2294.1,2293.7,2.0405]
[1725721033192,3.2078,2294.1,2294.0,0.43594]
[1725721033392,0.43589,2294.3,2294.0,0.43593]
[1725721033393,2.14534407,2294.3,2294.0,0.43593]
[1725721033798,2.14534407,2294.3,2294.0,0.82963]
[1725721033994,2.14534407,2294.3,2294.1,0.43592]
[1725721034201,2.14534407,2294.3,2294.0,0.82963]
[1725721035800,1.70945407,2294.4,2294.2,0.4359]
[1725721036006,2.14532407,2294.4,2294.1,0.43591]
[1725721036202,4.91725407,2294.4,2294.0,0.3937]
[1725721036415,4.91725407,2294.4,2294.2,0.43589]
[1725721036898,4.91725407,2294.4,2294.0,0.82962]
[1725721037101,0.43589,2294.3,2294.1,0.43592]
[1725721037701,0.43588,2294.3,2294.0,0.82962]
[1725721038004,4.91725407,2294.4,2294.0,0.43592]
[1725721038202,0.43591,2294.2,2294.0,0.43592]
[1725721039800,1.70945407,2294.3,2294.2,0.4359]
[1725721040604,1.70945407,2294.3,2294.1,0.8146]
[1725721041002,1.70945407,2294.3,2294.1,1.2007]
[1725721041307,2.14533407,2294.3,2294.1,0.7648]
[1725721041509,2.14533407,2294.3,2294.0,0.81352]
[1725721041708,2.14533407,2294.3,2293.5,9.97075402]
[1725721041709,0.43596,2293.9,2293.6,0.43601]
[1725721041911,0.43596,2293.9,2293.5,0.43602]
[1725721042100,0.43596,2293.9,2293.6,0.43601]
[1725721042101,2.14541407,2293.9,2293.6,0.43601]
[1725721042404,2.14541407,2293.9,2293.4,1.26]
[1725721042405,4.91725407,2293.8,2293.3,1.1185]
[1725721042613,5.35323407,2293.8,2293.5,0.43603]
[1725721042911,1.70945407,2293.7,2293.5,0.43603]
[1725721044215,0.3883,2293.6,2293.5,0.43603]
[1725721044710,0.3883,2293.6,2293.4,0.43604]
[1725721045101,1.70945407,2293.7,2293.6,0.43601]
[1725721045304,2.07515407,2293.8,2293.6,0.43601]
[1725721045709,2.07515407,2293.8,2293.6,0.79991]
[1725721045905,2.07515407,2293.8,2293.6,0.3639]
[1725721046113,2.07515407,2293.8,2293.5,1.69602]
[1725721046415,2.07515407,2293.8,2293.6,0.43601]
[1725721047320,2.07515407,2293.8,2293.7,0.43599]
[1725721047905,1.70945407,2293.8,2293.7,0.43599]
[1725721048112,2.10575407,2294.1,2294.0,0.43594]
[1725721048419,0.3963,2294.1,2293.9,1.69594]
[1725721049320,0.3963,2294.1,2294.0,0.43594]
[1725721050312,1.70945407,2294.2,2294.0,0.43594]
[1725721050511,1.70945407,2294.2,2294.1,0.81762]
[1725721050816,2.10575407,2294.3,2294.2,0.4359]
[1725721051220,1.70945407,2294.4,2294.3,0.43588]
[1725721051431,2.6453721,2294.5,2294.3,0.43588]
[1725721052124,12.58677832,2294.7,2294.5,0.43584]
[1725721052125,1.70851611,2294.7,2294.5,0.43584]
[1725721052423,1.70851611,2294.9,2294.8,0.43578]
[1725721052610,3.0222721,2295.1,2294.8,0.43578]
[1725721052611,1.70851611,2295.0,2294.8,0.43578]
[1725721053222,1.70851611,2295.0,2294.7,0.43579]
[1725721053719,1.70851611,2295.0,2294.8,0.43578]
[1725721055019,1.70851611,2295.0,2294.9,0.43577]
[1725721055227,2.45151611,2295.1,2294.9,0.43577]
[1725721055722,0.743,2295.1,2294.9,0.43575]
[1725721056219,5.85909012,2295.5,2294.9,0.43575]
[1725721056220,5.81851611,2295.6,2295.0,10.5754]
[1725721056431,1.70851611,2295.7,2295.3,6.2178]
[1725721056615,2.07561611,2295.8,2295.5,0.43564]
[1725721057328,0.3671,2295.8,2295.6,0.43563]
[1725721057619,0.3671,2295.8,2295.7,0.43561]
[1725721057824,2.07021611,2295.9,2295.7,0.43561]
[1725721057825,0.3617,2295.9,2295.7,0.43561]
[1725721059325,0.3617,2295.9,2295.6,1.18262]
[1725721059723,3.2078,2295.8,2295.4,0.43566]
[1725721060229,0.3911,2295.7,2294.9,6.2178]
[1725721060522,0.3911,2295.7,2295.1,0.43573]
[1725721060523,0.43565,2295.6,2295.1,0.43573]
[1725721061020,0.3803,2295.5,2295.1,0.43573]
[1725721061924,0.81595,2295.5,2295.1,0.43573]
[1725721062112,0.3803,2295.5,2295.1,0.43573]
[1725721062311,0.3803,2295.5,2295.2,0.43571]
[1725721062925,0.3911,2295.7,2295.4,0.43566]
[1725721065116,0.82672,2295.7,2295.4,0.43566]
[1725721065320,0.43566,2295.5,2295.1,3.44571]
[1725721065520,0.82673,2295.7,2295.3,0.43568]
[1725721066027,0.43564,2295.6,2295.1,3.01]
[1725721066223,0.82671,2295.7,2295.4,0.43566]
[1725721066727,0.3911,2295.7,2295.4,0.43566]
[1725721067227,0.82672,2295.7,2295.4,0.43566]
[1725721067627,0.82672,2295.7,2295.4,1.19356]
[1725721067831,3.2078,2295.8,2295.5,3.01]
[1725721068024,3.2078,2295.8,2295.7,0.43561]
[1725721069529,3.64336,2296.0,2295.7,0.43561]
[1725721070525,3.2078,2296.0,2295.8,0.43559]
[1725721070728,3.2078,2296.0,2295.7,0.43561]
[1725721070931,3.2078,2296.0,2295.4,1.19355]
[1725721070932,0.4356,2295.8,2295.4,1.19355]
[1725721071130,0.3656,2295.7,2295.4,1.19355]
[1725721071524,0.80122,2295.7,2295.4,0.7579]
[1725721071725,0.3613,2295.6,2295.4,0.3832]
[1725721071924,3.64347,2295.5,2295.1,3.44572]
[1725721072132,3.64347,2295.5,2295.2,0.3673]
[1725721072524,3.64347,2295.5,2295.2,0.80301]
[1725721072825,3.2078,2295.5,2295.4,0.43567]
[1725721073034,0.3613,2295.6,2295.4,0.43567]
[1725721073631,0.3613,2295.6,2295.3,3.44568]
[1725721073832,0.3613,2295.6,2295.4,0.43567]
[1725721074032,0.3613,2295.6,2295.3,3.44568]
[1725721074533,0.3613,2295.6,2295.4,0.43567]
[1725721075336,0.3613,2295.6,2295.4,0.43566]
[1725721079936,0.3613,2295.6,2295.4,0.83066]
[1725721081239,0.3613,2295.6,2295.4,0.395]
[1725721081836,0.79694,2295.6,2295.3,3.44568]
[1725721082033,0.3613,2295.6,2295.3,3.01]
[1725721082334,0.43566,2295.5,2295.3,3.01]
[1725721082546,0.43568,2295.4,2295.1,3.01]
[1725721082839,0.378,2295.3,2294.9,1.1483]
[1725721083033,0.3613,2295.6,2295.2,3.01]
[1725721083235,0.3613,2295.6,2295.4,0.43566]
[1725721083536,0.79693,2295.6,2295.3,1.20838]
[1725721084030,0.79693,2295.6,2295.3,0.7727]
[1725721084237,0.3613,2295.6,2295.1,3.2078]
[1725721084432,0.43568,2295.4,2295.1,3.64352]
[1725721084830,0.3912,2295.3,2295.1,3.64352]
[1725721089234,0.3912,2295.3,2295.1,0.43572]
[1725721089744,0.3912,2295.3,2295.1,3.64352]
[1725721090136,0.3912,2295.3,2295.1,0.43572]
[1725721090641,0.82689,2295.3,2295.1,3.2078]
[1725721090845,0.3762,2295.2,2295.1,3.2078]
[1725721091741,0.3762,2295.2,2295.1,3.64353]
[1725721092039,0.3762,2295.2,2295.1,0.43573]
[1725721092242,0.3762,2295.2,2295.1,3.64353]
[1725721094836,0.3762,2295.2,2295.1,0.43573]
[1725721096249,0.3762,2295.2,2295.0,0.81994]
[1725721096439,0.3762,2295.2,2295.0,0.3842]
[1725721096440,0.81192,2295.2,2295.0,0.3842]
[1725721096638,2.52043611,2295.2,2295.0,0.81994]
[1725721096847,0.81192,2295.2,2295.0,0.81994]
[1725721097049,0.3762,2295.2,2294.8,11.38946871]
[1725721097239,3.01,2294.9,2294.3,1.14352447]
[1725721097440,2.14408573,2294.6,2294.2,0.7597]
[1725721097646,2.14408573,2294.6,2294.3,0.43588]
[1725721098143,0.43588,2294.3,2294.0,0.43593]
[1725721098347,0.7469,2294.2,2294.0,0.43593]
[1725721098646,1.1227,2294.2,2294.0,0.43593]
[1725721099237,1.55861,2294.2,2293.8,4.40346]
[1725721099549,0.43592,2294.1,2293.8,4.40346]
[1725721099935,3.2078,2294.0,2293.6,0.43601]
[1725721100140,0.43596,2293.9,2293.5,3.44602]
[1725721100844,0.43596,2293.9,2293.6,0.43601]
[1725721101043,3.2078,2294.0,2293.6,0.43601]
[1725721101044,3.64375,2294.0,2293.6,0.43601]
[1725721101246,0.43595,2294.0,2293.7,0.43599]
[1725721101440,1.5586,2294.2,2293.7,3.01]
[1725721101637,1.5586,2294.2,2293.8,0.43596]
[1725721104855,0.43592,2294.1,2293.8,0.43596]
[1725721107047,0.43592,2294.1,2293.7,3.44598]
[1725721107655,0.43592,2294.1,2293.8,0.43597]
[1725721108148,3.2078,2294.0,2293.7,3.44598]
[1725721108546,3.2078,2294.0,2293.8,0.43597]
[1725721111842,1.5586,2294.2,2293.9,0.43596]
[1725721112038,1.5586,2294.2,2294.0,0.7177]
[1725721113146,3.2078,2294.5,2294.1,0.43592]
[1725721113356,1.58007,2294.4,2294.1,0.43592]
[1725721114255,0.43588,2294.3,2294.0,1.15363]
[1725721114451,0.4359,2294.2,2294.0,0.7177]
[1725721114651,3.6437,2294.2,2294.0,0.7177]
[1725721115352,3.6437,2294.2,2294.0,0.3585]
[1725721116757,0.43592,2294.1,2294.0,0.3585]
[1725721118358,3.64371,2294.2,2294.0,0.3585]
[1725721119056,0.43592,2294.1,2294.0,0.3585]
[1725721120053,3.64371,2294.2,2294.0,0.3585]
[1725721125559,3.2078,2294.2,2294.0,0.3585]
[1725721126154,3.64371,2294.2,2294.0,0.3585]
[1725721127271,3.2078,2294.2,2294.0,0.3585]
[1725721128059,3.64371,2294.2,2294.0,0.3585]
[1725721128265,0.43591,2294.2,2294.0,0.3585]
[1725721128470,3.64371,2294.2,2294.0,0.3585]
[1725721129066,0.43591,2294.2,2294.0,0.3585]
[1725721129375,3.64371,2294.2,2294.0,0.3585]
[1725721129965,3.64371,2294.2,2294.0,0.79444]
[1725721130169,1.1442,2294.4,2294.1,0.80752]
[1725721130367,1.1442,2294.4,2294.1,0.80751]
[1725721130564,0.43589,2294.3,2294.2,0.3582]
[1725721131973,0.4359,2294.2,2294.0,0.3585]
[1725721132865,0.43592,2294.1,2293.9,0.43594]
[1725721133265,0.3681,2294.0,2293.9,0.43594]
[1725721133774,0.80404,2294.0,2293.8,1.15697]
[1725721133990,1.55204,2294.0,2293.8,1.15697]
[1725721134693,1.55204,2294.0,2293.8,0.79417]
[1725721136390,1.55204,2294.0,2293.8,0.3582]
[1725721136585,1.55204,2294.0,2293.8,0.43597]
[1725721137989,0.43594,2294.0,2293.8,0.43597]
[1725721138190,1.70824573,2294.7,2294.1,1.0898]
[1725721138394,3.5679,2294.8,2294.5,0.43584]
[1725721138395,0.7959,2294.8,2294.5,0.43584]
[1725721138898,0.7959,2294.8,2294.6,0.3825]
[1725721139095,2.51192573,2294.9,2294.6,0.81831]
[1725721139395,2.14402573,2294.9,2294.7,0.3909]
[1725721139693,1.70824573,2294.9,2294.7,0.3909]
[1725721140093,0.3751,2294.8,2294.7,0.3909]
[1725721140493,2.08334573,2294.8,2294.7,0.3909]
[1725721141085,2.08334573,2294.8,2294.6,0.3825]
[1725721141288,2.08334573,2294.8,2294.6,0.81832]
[1725721141484,1.70824573,2294.7,2294.6,0.81832]
[1725721142496,1.70824573,2294.7,2294.4,0.82674]
[1725721142894,1.70824573,2294.6,2294.4,0.3909]
[1725721143098,2.14405573,2294.7,2294.4,0.82675]
[1725721143293,5.8621721,2294.8,2294.4,0.82675]
[1725721143294,1.70824573,2294.6,2294.4,0.82675]
[1725721143489,1.70824573,2294.6,2294.4,0.82674]
[1725721143895,1.70824573,2294.6,2294.4,0.3909]
[1725721144101,1.70824573,2294.6,2294.4,0.82676]
[1725721145486,2.14405573,2294.7,2294.4,0.3909]
[1725721145695,1.70824573,2294.6,2294.4,0.3909]
[1725721145897,2.08964573,2294.6,2294.4,0.3909]
[1725721146098,2.08964573,2294.6,2294.4,0.82676]
[1725721146598,0.3814,2294.6,2294.4,0.82676]
[1725721146899,2.52547573,2294.6,2294.4,0.3909]
[1725721149302,1.70824573,2294.5,2294.3,1.04809752]
[1725721149500,2.07404573,2294.5,2294.3,1.04809752]
[1725721149801,0.3738,2294.4,2294.3,0.65829752]
[1725721151093,2.08204573,2294.4,2294.3,0.65829752]
[1725721151301,2.08204573,2294.4,2294.3,0.22241752]
[1725721152006,2.08204573,2294.4,2294.3,0.65829752]
[1725721152304,2.08204573,2294.4,2294.2,0.81219]
[1725721152497,2.08204573,2294.4,2294.3,0.43588]
[1725721152702,1.70824573,2294.5,2294.3,0.43588]
[1725721152895,0.3773,2294.5,2294.4,0.43586]
[1725721153099,1.70987923,2294.5,2294.4,0.43586]
[1725721153311,2.09127923,2294.6,2294.4,0.43586]
[1725721156300,2.09127923,2294.6,2294.4,0.43585]
[1725721156500,2.09127923,2294.6,2294.5,0.43584]
[1725721156711,2.09127923,2294.6,2294.2,0.3763]
[1725721157005,2.09127923,2294.6,2294.4,0.43585]
[1725721157210,1.70987923,2294.5,2294.2,0.3763]
[1725721157402,1.70987923,2294.5,2294.4,0.43586]
[1725721157908,1.70987923,2294.5,2294.3,0.43587]
[1725721158101,2.09127923,2294.6,2294.3,0.43587]
[1725721158300,2.09127923,2294.6,2294.4,0.43586]
[1725721158800,2.09127923,2294.6,2294.3,0.43587]
[1725721159808,2.09127923,2294.6,2294.4,0.43586]
[1725721163310,5.29907923,2294.6,2294.4,0.43586]
[1725721164009,5.29907923,2294.6,2294.5,0.43584]
[1725721164711,3.5892,2294.6,2294.5,0.43584]
[1725721166112,5.8684721,2294.6,2294.5,0.43584]
[1725721166505,2.6606721,2294.6,2294.5,0.43584]
[1725721166809,5.8684721,2294.6,2294.5,0.43584]
[1725721168204,0.3814,2294.6,2294.5,0.43584]
[1725721168400,3.5892,2294.6,2294.5,0.43584]
[1725721168603,2.09238295,2294.6,2294.5,0.43584]
[1725721169003,0.3814,2294.6,2294.5,0.43584]
[1725721169203,2.09257016,2294.6,2294.5,0.43584]
[1725721169399,0.3814,2294.6,2294.5,0.43584]
[1725721171003,0.43585,2294.5,2294.2,0.81219]
[1725721171217,1.71161368,2294.5,2294.3,0.43588]
[1725721172116,1.71161368,2294.5,2294.4,0.43586]
[1725721174109,1.71161368,2294.6,2294.5,0.43584]
[1725721174708,1.0896721,2294.7,2294.5,15.09165]
[1725721174911,1.71194253,2295.2,2295.0,1.08937]
[1725721175226,2.45954253,2295.4,2295.3,0.43569]
[1725721175417,1.71194253,2295.5,2295.3,0.43569]
[1725721175920,1.71194253,2295.6,2295.4,0.43567]
[1725721176214,1.71194253,2295.6,2295.3,0.43568]
[1725721176414,1.71194253,2295.6,2295.1,5.60820715]
[1725721176614,1.71194253,2295.6,2295.3,0.43568]
[1725721176818,2.14757253,2295.6,2295.2,0.4357]
[1725721177009,1.71194253,2295.5,2295.2,0.4357]
[1725721179623,4.91974253,2295.6,2295.3,0.43569]
[1725721179824,5.35538253,2295.6,2295.2,0.4357]
[1725721180008,4.91974253,2295.6,2295.3,0.43569]
[1725721181022,1.71194253,2295.6,2295.5,1.69565]
[1725721181216,0.7354,2296.0,2295.9,0.43558]
[1725721184127,0.7354,2296.0,2295.8,0.43559]
[1725721184319,0.7354,2296.0,2295.7,0.43561]
[1725721184510,0.7354,2296.0,2295.6,6.2178]
[1725721184511,0.7354,2296.0,2295.6,0.43562]
[1725721184713,3.9432,2296.0,2295.6,0.43562]
[1725721184918,3.9432,2296.0,2295.7,0.43561]
[1725721185918,3.9432,2296.0,2295.6,0.43562]
[1725721186226,0.7354,2296.0,2295.5,0.22085683]
[1725721186519,0.7354,2296.0,2295.7,0.43561]
[1725721191431,0.7354,2296.0,2295.8,0.43559]
[1725721194124,0.7354,2296.0,2295.7,0.4356]
[1725721196032,0.7354,2296.0,2295.6,6.2178]
[1725721196230,0.7354,2296.0,2295.7,0.4356]
[1725721197029,0.7354,2296.0,2295.8,0.43559]
[1725721199035,0.7354,2296.0,2295.7,0.43561]
[1725721200029,0.7354,2296.0,2295.8,0.43558]
[1725721200432,0.7354,2296.0,2295.8,0.43559]
[1725721200729,0.7354,2296.0,2295.8,0.43558]
[1725721201230,0.7354,2296.0,2295.8,0.43559]
[1725721201438,0.7354,2296.0,2295.9,0.43558]
[1725721201828,0.7354,2296.0,2295.7,3.01]
[1725721202127,0.7354,2296.0,2295.8,0.43559]
[1725721202329,0.7354,2296.0,2295.9,0.43558]
[1725721204028,0.7354,2296.0,2295.8,1.69558]
[1725721204236,0.7354,2296.0,2295.2,3.2078]
[1725721204237,0.43565,2295.6,2295.2,3.2078]
[1725721204439,2.34895,2295.9,2295.1,1.69572]
[1725721204440,0.7808,2295.5,2295.1,1.69572]
[1725721204634,0.80038,2295.4,2295.1,1.69573]
[1725721204928,0.3647,2295.4,2295.2,0.43571]
[1725721205327,0.3647,2295.4,2295.3,1.69569]
[1725721205932,0.3921,2295.5,2295.4,0.43567]
[1725721206129,3.2078,2295.7,2295.6,0.43563]
[1725721206531,1.1408,2295.8,2295.7,0.43561]
[1725721207330,1.1408,2295.8,2295.6,0.43562]
[1725721207541,1.1408,2295.8,2295.5,1.26]
[1725721207738,1.1408,2295.8,2295.6,0.43561]
[1725721208039,1.1408,2295.8,2295.7,0.43561]
[1725721209435,4.11,2296.4,2295.7,10.356]
[1725721209628,4.11,2296.4,2296.1,1.26]
[1725721209629,0.7573,2296.3,2296.1,1.26]
[1725721209830,0.3777,2296.3,2296.2,0.43552]
[1725721210736,0.3777,2296.3,2296.1,3.82523]
[1725721211139,0.3777,2296.3,2295.9,6.65336]
[1725721211140,0.81321,2296.3,2295.9,6.65336]
[1725721211433,0.3622,2296.2,2295.9,0.43557]
[1725721213342,0.3622,2296.2,2296.0,0.43555]
[1725721214131,0.3622,2296.2,2296.0,0.43556]
[1725721214645,0.3622,2296.2,2295.9,6.2178]
[1725721214848,0.3777,2296.3,2296.2,0.43552]
[1725721215035,2.14335539,2296.6,2296.2,0.43552]
[1725721215036,0.733,2296.5,2296.2,0.43552]
[1725721215237,0.733,2296.5,2296.3,0.4355]
[1725721215942,0.733,2296.5,2296.2,0.43551]
[1725721216241,0.733,2296.5,2296.4,0.43548]
[1725721216844,0.733,2296.5,2296.3,0.43549]
[1725721217738,0.733,2296.5,2296.4,0.43548]
[1725721217944,0.733,2296.5,2296.1,3.01]
[1725721218136,3.9408,2296.5,2296.1,3.01]
[1725721218335,3.9408,2296.5,2296.0,0.43555]
[1725721218336,0.43551,2296.3,2296.0,0.43555]
[1725721218752,0.3794,2296.2,2296.0,0.43555]
[1725721219046,0.3858,2296.1,2296.0,0.43555]
[1725721219246,0.7463,2296.1,2296.0,0.43555]
[1725721219543,0.3858,2296.1,2296.0,0.43555]
[1725721219935,0.3572,2296.3,2295.9,3.01]
[1725721220251,0.3572,2296.3,2296.0,0.7515]
[1725721220437,0.3572,2296.3,2296.2,0.43552]
[1725721221049,1.70790539,2296.4,2296.2,0.43552]
[1725721221848,1.70790539,2296.4,2296.2,0.43551]
[1725721222640,1.70790539,2296.4,2296.3,0.4355]
[1725721223147,1.70790539,2296.4,2296.2,0.43551]
[1725721224043,1.70790539,2296.4,2296.3,0.4355]
[1725721224843,1.70790539,2296.4,2296.2,0.43551]
[1725721225340,1.70790539,2296.4,2296.3,0.4355]
[1725721226449,5.65870539,2296.5,2296.4,0.43548]
[1725721226648,5.65870539,2296.5,2296.3,0.43549]
[1725721227045,6.09418539,2296.5,2296.2,0.43551]
[1725721227349,1.70790539,2296.4,2296.2,0.43551]
[1725721227539,1.70790539,2296.4,2296.3,0.4355]
[1725721227843,6.09418539,2296.5,2296.3,0.4355]
[1725721228250,2.88638539,2296.5,2296.3,0.4355]
[1725721228441,2.88638539,2296.5,2296.2,0.43551]
[1725721228642,1.70790539,2296.4,2296.2,0.43551]
[1725721229149,2.14338539,2296.4,2296.1,3.44553]